fUSD/lending_fUSD_20240619
["ID","MTS","AMOUNT","RATE_DAILY","PERIOD"]
[329891284,1718799049374,-3617.57,0.00013698,2]
[329891286,1718799049383,-1624.75,0.00013698,2]
[329891288,1718799049392,-438.36122905,0.00013698,2]
[329891290,1718799049401,-1124.26,0.00013698,2]
[329891292,1718799049411,-500.0,0.00013698,2]
[329891294,1718799049420,-12318.11,0.00013698,2]
[329891296,1718799049430,-500.0,0.00013698,2]
[329891298,1718799049439,-500.0,0.00013698,2]
[329891300,1718799049449,-500.0,0.00013698,2]
[329891302,1718799049459,-500.0,0.00013698,2]
[329891304,1718799049472,-707.45,0.00013698,2]
[329891306,1718799049482,-2231.9,0.00013698,2]
[329891308,1718799049491,-2181.4,0.00013698,2]
[329891310,1718799049501,-919.83,0.00013698,2]
[329891312,1718799049510,-4935.96,0.00013698,2]
[329891314,1718799049521,-1803.14,0.00013698,2]
[329891316,1718799049530,-5090.89,0.00013698,2]
[329891318,1718799049540,-2123.97,0.00013698,2]
[329891320,1718799049552,-943.87,0.00013698,2]
[329891322,1718799049561,-500.0,0.00013698,2]
[329891324,1718799049570,-521.08,0.00013698,2]
[329891326,1718799049579,-2774.89,0.00013698,2]
[329891328,1718799049588,-1779.64,0.00013698,2]
[329891330,1718799049598,-10727.07,0.00013698,2]
[329891332,1718799049607,-2366.69,0.00013698,2]
[329891334,1718799049616,-1464.91,0.00013698,2]
[329891336,1718799049626,-4431.86,0.00013698,2]
[329891338,1718799049635,-500.0,0.00013698,2]
[329891341,1718799049645,-500.0,0.00013698,2]
[329891343,1718799049655,-12569.11,0.00013698,2]
[329891345,1718799049664,-4856.13,0.00013698,2]
[329891347,1718799049673,-1268.49,0.00013698,2]
[329891348,1718799049683,-500.0,0.00013698,2]
[329891351,1718799049692,-500.0,0.00013698,2]
[329891353,1718799049702,-626.2234794,0.00013698,2]
[329891355,1718799049711,-7412.12,0.00013698,2]
[329891357,1718799049722,-500.0,0.00013698,2]
[329891358,1718799049732,-1102.57,0.00013698,2]
[329891360,1718799049741,-288.85744333,0.00013698,2]
[329891362,1718799049751,-500.0,0.00013698,2]
[329891365,1718799049761,-2797.53,0.00013698,2]
[329891366,1718799049771,-500.0,0.00013698,2]
[329891368,1718799049780,-1246.69,0.00013698,2]
[329891371,1718799049790,-500.0,0.00013698,2]
[329891372,1718799049800,-500.0,0.00013698,2]
[329891375,1718799049810,-1131.82,0.00013698,2]
[329891376,1718799049819,-933.42,0.00013698,2]
[329891379,1718799049828,-3054.26,0.00013698,2]
[329891380,1718799049838,-4404.72,0.00013698,2]
[329891382,1718799049848,-7416.96,0.00013698,2]
[329891385,1718799049857,-500.0,0.00013698,2]
[329891386,1718799049867,-3243.24,0.00013698,2]
[329891389,1718799049876,-500.0,0.00013698,2]
[329891390,1718799049886,-719.51,0.00013698,2]
[329891392,1718799049895,-779.89,0.00013698,2]
[329891394,1718799049905,-3064.26,0.00013698,2]
[329891397,1718799049914,-3840.61,0.00013698,2]
[329891399,1718799049924,-500.0,0.00013698,2]
[329891400,1718799049934,-3438.88,0.00013698,2]
[329891403,1718799049944,-3534.98,0.00013698,2]
[329891405,1718799049954,-565.53,0.00013698,2]
[329891407,1718799049963,-500.0,0.00013698,2]
[329891408,1718799049973,-6686.16,0.00013698,2]
[329891410,1718799049983,-1915.47,0.00013698,2]
[329891412,1718799049993,-762.79,0.00013698,2]
[329891414,1718799050002,-6441.09,0.00013698,2]
[329891417,1718799050012,-500.0,0.00013698,2]
[329891419,1718799050024,-1169.85,0.00013698,2]
[329891420,1718799050033,-943.59,0.00013698,2]
[329891423,1718799050043,-500.0,0.00013698,2]
[329891425,1718799050053,-1867.51,0.00013698,2]
[329891427,1718799050063,-500.0,0.00013698,2]
[329891428,1718799050073,-1249.17,0.00013698,2]
[329891430,1718799050082,-1706.85,0.00013698,2]
[329891433,1718799050091,-500.0,0.00013698,2]
[329891434,1718799050101,-4853.23,0.00013698,2]
[329891437,1718799050112,-770.15,0.00013698,2]
[329891439,1718799050121,-500.0,0.00013698,2]
[329891441,1718799050131,-200.0,0.00013699,2]
[329891443,1718799050140,-200.0,0.00013699,2]
[329891445,1718799050150,-1000.0,0.00013699,2]
[329891447,1718799050159,-1000.0,0.00013699,2]
[329891449,1718799050168,-1000.0,0.00013699,2]
[329891451,1718799050178,-1000.0,0.00013699,2]
[329891453,1718799050187,-1000.0,0.00013699,2]
[329891455,1718799050196,-1000.0,0.00013699,2]
[329891457,1718799050205,-1000.0,0.00013699,2]
[329891458,1718799050214,-1000.0,0.00013699,2]
[329891460,1718799050224,-1000.0,0.00013699,2]
[329891462,1718799050233,-1000.0,0.00013699,2]
[329891465,1718799050243,-1000.0,0.00013699,2]
[329891466,1718799050252,-1000.0,0.00013699,2]
[329891468,1718799050261,-1000.0,0.00013699,2]
[329891470,1718799050272,-1000.0,0.00013699,2]
[329891472,1718799050281,-1000.0,0.00013699,2]
[329891474,1718799050290,-691.0,0.00013699,2]
[329891476,1718799050299,-1000.0,0.00013699,2]
[329891478,1718799050308,-1000.0,0.00013699,2]
[329891480,1718799050317,-1000.0,0.00013699,2]
[329891482,1718799050327,-1000.0,0.00013699,2]
[329891484,1718799050336,-1000.0,0.00013699,2]
[329891486,1718799050345,-1000.0,0.00013699,2]
[329891488,1718799050354,-1000.0,0.00013699,2]
[329891490,1718799050363,-1000.0,0.00013699,2]
[329891492,1718799050373,-1000.0,0.00013699,2]
[329891493,1718799050381,-1000.0,0.00013699,2]
[329891494,1718799050390,-1000.0,0.00013699,2]
[329891495,1718799050399,-1000.0,0.00013699,2]
[329891496,1718799050408,-1000.0,0.00013699,2]
[329891497,1718799050417,-1000.0,0.00013699,2]
[329891498,1718799050426,-1000.0,0.00013699,2]
[329891499,1718799050434,-1000.0,0.00013699,2]
[329891500,1718799050443,-1000.0,0.00013699,2]
[329891501,1718799050455,-198.12,0.00013699,2]
[329891502,1718799050466,-1000.0,0.00013699,2]
[329891504,1718799050475,-511.0,0.00013699,2]
[329891506,1718799050484,-1000.0,0.00013699,2]
[329891508,1718799050493,-1000.0,0.00013699,2]
[329891510,1718799050504,-1000.0,0.00013699,2]
[329891512,1718799050513,-1000.0,0.00013699,2]
[329891514,1718799050523,-1000.0,0.00013699,2]
[329891516,1718799050532,-1000.0,0.00013699,2]
[329891518,1718799050544,-1000.0,0.00013699,2]
[329891520,1718799050555,-1000.0,0.00013699,2]
[329891521,1718799050564,-1000.0,0.00013699,2]
[329891524,1718799050574,-1000.0,0.00013699,2]
[329891526,1718799050584,-1016.0,0.00013699,2]
[329891528,1718799050594,-1000.0,0.00013699,2]
[329891530,1718799050604,-3968.98,0.00013699,2]
[329891532,1718799050613,-1000.0,0.00013699,2]
[329891534,1718799050622,-1000.0,0.00013699,2]
[329891536,1718799050631,-1000.0,0.00013699,2]
[329891538,1718799050641,-1000.0,0.00013699,2]
[329891540,1718799050651,-1000.0,0.00013699,2]
[329891542,1718799050660,-1000.0,0.00013699,2]
[329891544,1718799050669,-1000.0,0.00013699,2]
[329891546,1718799050679,-1000.0,0.00013699,2]
[329891548,1718799050688,-200.0,0.00013699,2]
[329891550,1718799050698,-1000.0,0.00013699,2]
[329891552,1718799050707,-1000.0,0.00013699,2]
[329891554,1718799050717,-1000.0,0.00013699,2]
[329891555,1718799050726,-1000.0,0.00013699,2]
[329891558,1718799050736,-1000.0,0.00013699,2]
[329891560,1718799050746,-1000.0,0.00013699,2]
[329891561,1718799050755,-1000.0,0.00013699,2]
[329891563,1718799050766,-1000.0,0.00013699,2]
[329891565,1718799050778,-1000.0,0.00013699,2]
[329891567,1718799050788,-1050.25,0.00013699,2]
[329891569,1718799050797,-4928.62,0.00013699,2]
[329891571,1718799050807,-1000.0,0.00013699,2]
[329891574,1718799050816,-1000.0,0.00013699,2]
[329891576,1718799050825,-1000.0,0.00013699,2]
[329891578,1718799050835,-1000.0,0.00013699,2]
[329891579,1718799050844,-1000.0,0.00013699,2]
[329891582,1718799050853,-1000.0,0.00013699,2]
[329891583,1718799050863,-1000.0,0.00013699,2]
[329891585,1718799050872,-1000.0,0.00013699,2]
[329891587,1718799050882,-1000.0,0.00013699,2]
[329891590,1718799050891,-1000.0,0.00013699,2]
[329891592,1718799050901,-1000.0,0.00013699,2]
[329891594,1718799050910,-1000.0,0.00013699,2]
[329891596,1718799050919,-1000.0,0.00013699,2]
[329891598,1718799050929,-1000.0,0.00013699,2]
[329891600,1718799050938,-1081.0,0.00013699,2]
[329891602,1718799050947,-250.0,0.00013699,2]
[329891603,1718799050956,-500.0,0.00013699,2]
[329891605,1718799050966,-151.0,0.00013699,2]
[329891607,1718799050975,-151.0,0.00013699,2]
[329891609,1718799050985,-169.726769,0.00013699,2]
[329891610,1718799050994,-2751.0,0.00013699,2]
[329891611,1718799051004,-500.0,0.000137,2]
[329891612,1718799051014,-1411.0,0.000137,2]
[329891613,1718799051026,-7477.12,0.00013704,2]
[329891614,1718799051036,-558.05,0.00013707,2]
[329891615,1718799051046,-7372.19,0.00013708,2]
[329891616,1718799051055,-7437.04,0.00013708,2]
[329891617,1718799051065,-7586.71,0.00013708,2]
[329891618,1718799051075,-7400.0,0.00013708,2]
[329891619,1718799051084,-7460.76,0.00013708,2]
[329891620,1718799051094,-7423.9,0.00013708,2]
[329891621,1718799051105,-2216.93338891,0.00013727,2]
[329891622,1718799051114,-2216.93338891,0.00013771,2]
[329891623,1718799051124,-9378.92138606,0.00013785,2]
[329891624,1718799051134,-537.28157027,0.00013798,2]
[329891625,1718799051144,-9452.4796659,0.000138,2]
[329891626,1718799051154,-975.04504316,0.000138,2]
[329891627,1718799051164,-294.69175801,0.000138,2]
[329891628,1718799051175,-1000.0,0.000138,2]
[329891629,1718799051184,-2216.93338891,0.00013814,2]
[329891630,1718799051195,-2216.93338891,0.00013857,2]
[329891631,1718799051205,-6801.3728989,0.00013872,2]
[329891632,1718799051215,-2736.62728725,0.00013872,2]
[329891633,1718799051224,-174.98775606,0.00013872,2]
[329891634,1718799051234,-495.100479,0.00013883,2]
[329891635,1718799051244,-346.18440876,0.00013884,2]
[329891636,1718799051254,-184.795247,0.00013885,2]
[329891637,1718799051263,-32179.307831,0.00013885,2]
[329891638,1718799051276,-6625.109689,0.00013885,2]
[329891639,1718799051286,-171.83042,0.00013885,2]
[329891640,1718799051296,-453.596171,0.00013885,2]
[329891641,1718799051306,-883.317902,0.00013885,2]
[329891642,1718799051316,-574.234594,0.00013885,2]
[329891643,1718799051326,-26500.438756,0.00013885,2]
[329891644,1718799051336,-202.737147,0.00013885,2]
[329891645,1718799051346,-58934.788333,0.00013885,2]
[329891646,1718799051355,-200.265909,0.00013885,2]
[329891647,1718799051365,-223.221138,0.00013885,2]
[329891648,1718799051374,-180.145639,0.00013885,2]
[329891649,1718799051384,-1292.723627,0.00013885,2]
[329891650,1718799051394,-200.739039,0.00013885,2]
[329891651,1718799051403,-294.244002,0.00013885,2]
[329891652,1718799051413,-180.609478,0.00013885,2]
[329891653,1718799051423,-6575.321074,0.00013885,2]
[329891654,1718799051433,-7136.514005,0.00013885,2]
[329891655,1718799051443,-173.400328,0.00013885,2]
[329891656,1718799051454,-323.09983,0.00013885,2]
[329891657,1718799051468,-206.211332,0.00013885,2]
[329891658,1718799051478,-3255.720207,0.00013885,2]
[329891659,1718799051487,-173.400329,0.00013885,2]
[329891660,1718799051499,-161.549916,0.00013885,2]
[329891661,1718799051509,-3529.595269,0.00013885,2]
[329891662,1718799051520,-171.842777,0.00013885,2]
[329891663,1718799051531,-3630.86144,0.00013885,2]
[329891664,1718799051544,-173.400329,0.00013885,2]
[329891665,1718799051555,-3568.257003,0.00013885,2]
[329891666,1718799051564,-161.549915,0.00013885,2]
[329891667,1718799051575,-171.842777,0.00013885,2]
[329891668,1718799051585,-558.05,0.00013886,2]
[329891669,1718799051595,-9378.92138602,0.00013886,2]
[329891670,1718799051605,-6801.37289888,0.00013891,2]
[329891671,1718799051615,-2736.62728725,0.00013891,2]
[329891672,1718799051625,-469.457009,0.00013897,2]
[329891673,1718799051635,-558.05,0.00013897,2]
[329891674,1718799051646,-91940.1734457,0.00013898,2]
[329891675,1718799051656,-91940.17344566,0.00013898,2]
[329891676,1718799051666,-91940.17344566,0.00013898,2]
[329891677,1718799051676,-91940.17344566,0.00013898,2]
[329891678,1718799051686,-4903.03681106,0.00013898,2]
[329891679,1718799051696,-4903.03681106,0.00013898,2]
[329891680,1718799051706,-4903.03681106,0.00013898,2]
[329891681,1718799051717,-4903.03681106,0.00013898,2]
[329891682,1718799051728,-4903.03681106,0.00013898,2]
[329891683,1718799051738,-2331.09799984,0.00013899,2]
[329891684,1718799051748,-558.05,0.00013899,2]
[329891685,1718799051758,-250000.0,0.000139,2]
[329891686,1718799051769,-5424.0,0.000139,2]
[329891687,1718799051780,-753.4814338,0.000139,2]
[329891688,1718799051790,-5800.0,0.000139,2]
[329891689,1718799051799,-5800.0,0.000139,2]
[329891690,1718799051809,-2216.93338891,0.000139,2]
[329891691,1718799051819,-5800.0,0.000139,2]
[329891692,1718799051828,-169.24790697,0.000139,2]
[329891693,1718799051839,-6801.37289888,0.00013909,2]
[329891694,1718799051848,-2736.62728725,0.00013909,2]
[329891695,1718799051859,-4903.03681106,0.00013947,2]
[329891696,1718799051869,-13473.5,0.0001395,2]
[329891697,1718799051879,-13473.9763481,0.0001395,2]
[329891698,1718799051889,-13473.4,0.0001395,2]
[329891699,1718799051900,-91940.17344566,0.00013957,2]
[329891700,1718799051910,-558.05,0.00013961,2]
[329891701,1718799051920,-1000.0,0.0001397,2]
[329891702,1718799051930,-1000.0,0.0001397,2]
[329891703,1718799051940,-676.47133492,0.0001397,2]
[329891704,1718799051950,-1325.93513,0.0001397,2]
[329891705,1718799051960,-1000.0,0.0001397,2]
[329891706,1718799051971,-500.0,0.0001397,2]
[329891707,1718799051980,-155.0,0.0001397,2]
[329891708,1718799051990,-558.05,0.00013971,2]
[329891709,1718799052000,-558.05,0.00013971,2]
[329891710,1718799052010,-558.05,0.00013971,2]
[329891711,1718799052021,-558.05,0.00013971,2]
[329891712,1718799052030,-150.0,0.00013971,2]
[329891713,1718799052039,-748.1,0.00013972,2]
[329891714,1718799052049,-500.0,0.00013972,2]
[329891715,1718799052059,-707.84,0.00013972,2]
[329891716,1718799052068,-828.07,0.00013972,2]
[329891717,1718799052078,-617.83,0.00013972,2]
[329891718,1718799052088,-743.29,0.00013972,2]
[329891719,1718799052097,-500.0,0.00013972,2]
[329891720,1718799052108,-500.0,0.00013972,2]
[329891721,1718799052119,-500.0,0.00013972,2]
[329891722,1718799052129,-500.0,0.00013972,2]
[329891723,1718799052140,-631.04,0.00013972,2]
[329891724,1718799052151,-567.0,0.00013972,2]
[329891725,1718799052163,-500.0,0.00013972,2]
[329891726,1718799052172,-500.0,0.00013972,2]
[329891727,1718799052184,-500.0,0.00013972,2]
[329891728,1718799052197,-500.0,0.00013972,2]
[329891729,1718799052208,-525.53,0.00013972,2]
[329891730,1718799052219,-500.0,0.00013972,2]
[329891731,1718799052229,-1021.11,0.00013972,2]
[329891732,1718799052240,-1158.68,0.00013972,2]
[329891733,1718799052250,-500.0,0.00013972,2]
[329891734,1718799052259,-500.0,0.00013972,2]
[329891735,1718799052269,-670.31,0.00013972,2]
[329891736,1718799052279,-500.0,0.00013972,2]
[329891737,1718799052289,-543.7,0.00013972,2]
[329891738,1718799052299,-574.57,0.00013972,2]
[329891739,1718799052310,-500.0,0.00013972,2]
[329891740,1718799052321,-569.59,0.00013972,2]
[329891741,1718799052330,-500.0,0.00013972,2]
[329891742,1718799052340,-500.0,0.00013972,2]
[329891743,1718799052352,-502.89,0.00013972,2]
[329891744,1718799052363,-500.0,0.00013972,2]
[329891745,1718799052374,-500.0,0.00013972,2]
[329891746,1718799052385,-500.0,0.00013972,2]
[329891747,1718799052395,-500.0,0.00013972,2]
[329891748,1718799052406,-678.8,0.00013972,2]
[329891749,1718799052417,-507.81,0.00013972,2]
[329891750,1718799052427,-500.0,0.00013972,2]
[329891751,1718799052439,-744.23,0.00013972,2]
[329891752,1718799052451,-627.81,0.00013972,2]
[329891753,1718799052467,-500.0,0.00013972,2]
[329891754,1718799052477,-700.71,0.00013972,2]
[329891755,1718799052487,-601.36,0.00013972,2]
[329891756,1718799052499,-500.0,0.00013972,2]
[329891757,1718799052509,-968.96,0.00013972,2]
[329891758,1718799052521,-500.0,0.00013972,2]
[329891759,1718799052530,-500.0,0.00013972,2]
[329891760,1718799052540,-567.33,0.00013972,2]
[329891761,1718799052551,-913.19,0.00013972,2]
[329891762,1718799052561,-500.0,0.00013972,2]
[329891763,1718799052571,-500.0,0.00013972,2]
[329891764,1718799052581,-988.9,0.00013972,2]
[329891765,1718799052592,-500.0,0.00013972,2]
[329891766,1718799052602,-500.0,0.00013972,2]
[329891767,1718799052613,-500.0,0.00013972,2]
[329891768,1718799052623,-500.0,0.00013972,2]
[329891769,1718799052633,-500.0,0.00013972,2]
[329891770,1718799052644,-500.0,0.00013972,2]
[329891771,1718799052654,-500.0,0.00013972,2]
[329891772,1718799052663,-538.4,0.00013972,2]
[329891773,1718799052673,-500.0,0.00013972,2]
[329891774,1718799052684,-645.97896718,0.00013972,2]
[329891775,1718799052694,-500.0,0.00013972,2]
[329891776,1718799052703,-755.2,0.00013972,2]
[329891777,1718799052713,-500.0,0.00013972,2]
[329891778,1718799052723,-500.0,0.00013972,2]
[329891779,1718799052733,-500.0,0.00013972,2]
[329891780,1718799052745,-851.19,0.00013972,2]
[329891781,1718799052755,-618.27,0.00013972,2]
[329891782,1718799052765,-874.36,0.00013972,2]
[329891783,1718799052775,-500.0,0.00013972,2]
[329891784,1718799052786,-500.0,0.00013972,2]
[329891785,1718799052796,-500.0,0.00013972,2]
[329891786,1718799052806,-514.38535379,0.00013972,2]
[329891787,1718799052816,-208.85926365,0.00013972,2]
[329891788,1718799052827,-513.21,0.00013972,2]
[329891789,1718799052836,-604.04,0.00013972,2]
[329891790,1718799052846,-653.09,0.00013972,2]
[329891791,1718799052856,-655.52,0.00013972,2]
[329891792,1718799052866,-500.0,0.00013972,2]
[329891793,1718799052876,-500.0,0.00013972,2]
[329891794,1718799052886,-500.0,0.00013972,2]
[329891795,1718799052896,-500.0,0.00013972,2]
[329891796,1718799052906,-500.0,0.00013972,2]
[329891797,1718799052915,-500.0,0.00013972,2]
[329891798,1718799052926,-666.75,0.00013972,2]
[329891799,1718799052936,-1361.77,0.00013972,2]
[329891800,1718799052947,-500.0,0.00013972,2]
[329891801,1718799052958,-906.35,0.00013972,2]
[329891802,1718799052969,-500.0,0.00013972,2]
[329891803,1718799052979,-529.98619483,0.00013972,2]
[329891804,1718799052989,-500.0,0.00013972,2]
[329891805,1718799053002,-500.0,0.00013972,2]
[329891806,1718799053014,-5112.39496944,0.00013972,2]
[329891807,1718799053025,-500.0,0.00013972,2]
[329891808,1718799053035,-1359.32,0.00013972,2]
[329891809,1718799053045,-871.43,0.00013972,2]
[329891810,1718799053056,-500.0,0.00013972,2]
[329891811,1718799053066,-752.84,0.00013972,2]
[329891812,1718799053076,-500.0,0.00013972,2]
[329891813,1718799053086,-809.88,0.00013972,2]
[329891814,1718799053097,-2381.19,0.00013972,2]
[329891815,1718799053107,-402.70695557,0.00013972,2]
[329891816,1718799053118,-500.0,0.00013972,2]
[329891817,1718799053129,-1168.83,0.00013972,2]
[329891818,1718799053140,-500.0,0.00013972,2]
[329891819,1718799053151,-575.38,0.00013972,2]
[329891820,1718799053163,-1740.57,0.00013972,2]
[329891821,1718799053173,-819.62,0.00013972,2]
[329891822,1718799053183,-937.13,0.00013972,2]
[329891823,1718799053192,-500.0,0.00013972,2]
[329891824,1718799053202,-2131.91,0.00013972,2]
[329891825,1718799053212,-1827.98,0.00013972,2]
[329891826,1718799053224,-500.0,0.00013972,2]
[329891827,1718799053233,-500.0,0.00013972,2]
[329891828,1718799053243,-500.0,0.00013972,2]
[329891829,1718799053254,-899.78,0.00013972,2]
[329891830,1718799053264,-1034.32,0.00013972,2]
[329891831,1718799053278,-748.64,0.00013972,2]
[329891832,1718799053288,-500.0,0.00013972,2]
[329891833,1718799053298,-690.06,0.00013972,2]
[329891834,1718799053308,-500.0,0.00013972,2]
[329891835,1718799053318,-1606.02,0.00013972,2]
[329891836,1718799053328,-1328.38,0.00013972,2]
[329891837,1718799053338,-1238.15,0.00013972,2]
[329891838,1718799053348,-786.86,0.00013972,2]
[329891839,1718799053359,-500.0,0.00013972,2]
[329891840,1718799053370,-500.0,0.00013972,2]
[329891841,1718799053380,-500.0,0.00013972,2]
[329891842,1718799053391,-500.0,0.00013972,2]
[329891843,1718799053403,-500.0,0.00013972,2]
[329891844,1718799053415,-500.0,0.00013972,2]
[329891845,1718799053722,-500.0,0.00013972,2]
[329891846,1718799053733,-534.14,0.00013972,2]
[329891847,1718799053744,-500.0,0.00013972,2]
[329891848,1718799053754,-206.51119658,0.00013972,2]
[329891849,1718799053764,-1130.17,0.00013972,2]
[329891850,1718799053774,-1489.88,0.00013972,2]
[329891851,1718799053783,-500.0,0.00013972,2]
[329891852,1718799053793,-500.0,0.00013972,2]
[329891853,1718799053804,-500.0,0.00013972,2]
[329891854,1718799053813,-815.68,0.00013972,2]
[329891855,1718799053823,-1075.5,0.00013972,2]
[329891856,1718799053833,-1436.81,0.00013972,2]
[329891857,1718799053843,-500.0,0.00013972,2]
[329891858,1718799053852,-1438.36,0.00013972,2]
[329891859,1718799053862,-500.0,0.00013972,2]
[329891860,1718799053872,-560.78,0.00013972,2]
[329891861,1718799053882,-921.7,0.00013972,2]
[329891862,1718799053892,-500.0,0.00013972,2]
[329891863,1718799053903,-1019.97,0.00013972,2]
[329891864,1718799053913,-500.0,0.00013972,2]
[329891865,1718799053922,-755.78,0.00013972,2]
[329891866,1718799053932,-668.06,0.00013972,2]
[329891867,1718799053942,-500.0,0.00013972,2]
[329891868,1718799053952,-500.0,0.00013972,2]
[329891869,1718799053961,-500.0,0.00013972,2]
[329891870,1718799053971,-500.0,0.00013972,2]
[329891871,1718799053982,-500.0,0.00013972,2]
[329891872,1718799053992,-575.86,0.00013972,2]
[329891873,1718799054002,-500.0,0.00013972,2]
[329891874,1718799054012,-500.0,0.00013972,2]
[329891875,1718799054022,-500.0,0.00013972,2]
[329891876,1718799054032,-1503.09,0.00013972,2]
[329891877,1718799054042,-1292.84,0.00013972,2]
[329891878,1718799054052,-500.0,0.00013972,2]
[329891879,1718799054062,-661.37,0.00013972,2]
[329891880,1718799054072,-500.0,0.00013972,2]
[329891881,1718799054082,-1210.61,0.00013972,2]
[329891882,1718799054092,-500.0,0.00013972,2]
[329891883,1718799054101,-500.0,0.00013972,2]
[329891884,1718799054112,-500.0,0.00013972,2]
[329891885,1718799054122,-1280.48,0.00013972,2]
[329891886,1718799054132,-500.0,0.00013972,2]
[329891887,1718799054141,-500.0,0.00013972,2]
[329891888,1718799054150,-2089.29,0.00013972,2]
[329891889,1718799054159,-1620.19,0.00013972,2]
[329891890,1718799054169,-500.0,0.00013972,2]
[329891891,1718799054178,-971.87,0.00013972,2]
[329891892,1718799054188,-561.20316157,0.00013972,2]
[329891893,1718799054198,-500.0,0.00013972,2]
[329891894,1718799054208,-500.0,0.00013972,2]
[329891895,1718799054218,-645.94,0.00013972,2]
[329891896,1718799054228,-536.22256385,0.00013972,2]
[329891897,1718799054238,-500.0,0.00013972,2]
[329891898,1718799054248,-500.0,0.00013972,2]
[329891899,1718799054258,-500.0,0.00013972,2]
[329891900,1718799054267,-543.31371926,0.00013972,2]
[329891901,1718799054279,-922.08,0.00013972,2]
[329891902,1718799054288,-1013.09,0.00013972,2]
[329891903,1718799054298,-500.0,0.00013972,2]
[329891904,1718799054307,-500.0,0.00013972,2]
[329891905,1718799054317,-1687.09,0.00013972,2]
[329891906,1718799054326,-500.0,0.00013972,2]
[329891907,1718799054336,-1476.65,0.00013972,2]
[329891908,1718799054346,-500.0,0.00013972,2]
[329891909,1718799054356,-500.0,0.00013972,2]
[329891910,1718799054366,-1746.15,0.00013972,2]
[329891911,1718799054376,-1927.12,0.00013972,2]
[329891912,1718799054385,-500.0,0.00013972,2]
[329891913,1718799054396,-500.0,0.00013972,2]
[329891914,1718799054405,-1758.29,0.00013972,2]
[329891915,1718799054415,-508.18861052,0.00013972,2]
[329891916,1718799054425,-599.48,0.00013972,2]
[329891917,1718799054434,-1222.14,0.00013972,2]
[329891918,1718799054444,-500.0,0.00013972,2]
[329891919,1718799054456,-500.0,0.00013972,2]
[329891920,1718799054468,-960.76,0.00013972,2]
[329891921,1718799054477,-770.03,0.00013972,2]
[329891922,1718799054488,-1674.0,0.00013972,2]
[329891923,1718799054499,-921.23,0.00013972,2]
[329891924,1718799054509,-500.0,0.00013972,2]
[329891925,1718799054519,-1639.42,0.00013972,2]
[329891926,1718799054531,-529.88,0.00013972,2]
[329891927,1718799054544,-500.0,0.00013972,2]
[329891928,1718799054555,-854.7,0.00013972,2]
[329891929,1718799054564,-802.51,0.00013972,2]
[329891930,1718799054575,-500.0,0.00013972,2]
[329891931,1718799054585,-792.07,0.00013972,2]
[329891932,1718799054595,-500.0,0.00013972,2]
[329891933,1718799054604,-500.0,0.00013972,2]
[329891934,1718799054614,-500.0,0.00013972,2]
[329891935,1718799054624,-500.0,0.00013972,2]
[329891936,1718799054634,-500.0,0.00013972,2]
[329891937,1718799054644,-500.0,0.00013972,2]
[329891938,1718799054653,-1000.0,0.00013972,5]
[329891939,1718799054663,-500.0,0.00013972,2]
[329891940,1718799054673,-500.0,0.00013972,2]